Cogmind - Beta 15 @@@ ROGUE MODE // 2025.07.14 @ 07:06:07 Player: Sirius Result: Destroyed by DZ-W6X(j) with Overtuned Pulse Rifle Performance ------------- Evolutions (0) 0 Regions Visited (3) 600 Robots Destroyed (11) 55 Value Destroyed (199) 199 Prototype IDs (8) 160 Alien Tech Used (0) 0 Bonus (800) 800 TOTAL SCORE: 1814 Bonus ------- Registered with UFD 300 Met Optimus in HQ 500 Cogmind --------- Core Integrity 0/250 Matter 267/300 Energy 200/200 System Corruption 0% Temperature Cool (94) Movement Rolling (100) Location -7/Scraptown Parts ------- > --- POWER (1) -------- Subdweller Power Source > --- PROPULSION (2) --- Compact Wheel Compact Wheel > --- UTILITY (2) ------ Subdweller Optics Experimental Terrain Scanner > --- WEAPON (2) ------- Shotgun Subdweller Machine Gun > --- INVENTORY (5) ---- Subdweller Monowheel Large Matter Pod (150) Shotgun Peak State ------------ > --- POWER ------------ Subdweller Power Source > --- PROPULSION ------- Compact Wheel Compact Wheel > --- UTILITY ---------- Subdweller Optics Experimental Terrain Scanner > --- WEAPON ----------- Shotgun Subdweller Machine Gun > --- INVENTORY -------- Subdweller Monowheel Large Matter Pod Shotgun Shotgun [Rating: 19] Favorites ----------- Power Subdweller Power Source Engine Subdweller Power Source Propulsion Compact Wheel Leg Aluminum Leg Wheel Compact Wheel Utility Scrap Shield Device Shield Generator Storage Small Storage Unit Protection Scrap Shield Weapon Shotgun Ballistic Gun Shotgun Special Weapon Plasma Cutter Build | -11 -10 -10 -7 ------- Run | Yrd Mat Sub Scr Slots Evolved . | . . . . Power . | . . . . Propulsion . | . . . . Utility . | . . . . Weapon . | . . . . Parts Attached 23 | 6 8 6 3 Power 5 | 1 2 2 . Engine 5 | 1 2 2 . Core . | . . . . Reactor . | . . . . Propulsion 6 | 2 2 2 . Treads . | . . . . Leg 2 | 2 . . . Wheel 4 | . 2 2 . Hover . | . . . . Flight . | . . . . Utility 5 | 1 1 1 2 Device 3 | . 1 . 2 Storage 1 | 1 . . . Processor . | . . . . Hackware . | . . . . Protection 1 | . . 1 . Artifact . | . . . . Weapon 7 | 2 3 1 1 Energy Gun . | . . . . Energy Cannon . | . . . . Ballistic Gun 6 | 2 2 1 1 Ballistic Cannon . | . . . . Launcher . | . . . . Special Weapon 1 | . 1 . . Impact Weapon . | . . . . Slashing Weapon . | . . . . Piercing Weapon . | . . . . Special Melee Weapon . | . . . . Unidentified Prototypes . | . . . . Parts Lost 5 | . . 4 1 Power 1 | . . 1 . Propulsion 2 | . . 2 . Utility . | . . . . Weapon 2 | . . 1 1 Highest Loss Streak 4 | . . 4 1 To Critical Strikes . | . . . . Average Backups 5 | 3 7 5 4 Power . | . 1 . . Propulsion 1 | 2 2 1 1 Utility 1 | . . 1 1 Weapon 2 | . 4 2 1 Tool/Special . | . . . . Unused Backups 8 | . 5 . 3 Power . | . . . . Propulsion 3 | . 2 . 1 Utility 1 | . . . 1 Weapon 4 | . 3 . 1 Tool/Special . | . . . . Average Slot Usage (%) 87 | . 90 88 85 Engine 14 | . 14 14 14 Leg 5 | . 14 . . Wheel 22 | . 13 28 28 Device 3 | . 4 3 2 Storage 6 | . 14 3 . Protection 6 | . . 10 11 Ballistic Gun 27 | . 26 27 28 Peak Build Rating 19 | 6 11 12 19 Average Rating 10 | 5 8 11 11 On Entrance 7 | . 6 11 12 Naked Turns . | . . . . Heaviest Build 30 | 14 18 30 30 Greatest Support 32 | 20 32 32 32 Greatest Overweight (x) . | . . . . Average Overweight (x) . | . . . . Largest Inventory Capacity 8 | 8 8 8 5 Average Capacity 6 | 7 8 5 5 Most Carried 8 | 6 8 8 5 Average Carried 6 | 3 7 5 4 Final Capacity 8 | 8 8 5 5 Final Carried 8 | 6 8 5 3 Class Distribution -------------------- 51% | Mutant 48% | Subdweller-Mutant Dominant Class ---------------- Mutant | -10/Materials Subdweller-Mutant | -10/Subcaves Subdweller-Mutant | -7/Scraptown Resources | -11 -10 -10 -7 ----------- Run | Yrd Mat Sub Scr Matter Collected 709 | 215 293 201 . Remotely . | . . . . Salvage Created 227 | . 189 . 38 Parts 26 | . 24 . 2 Haulers Intercepted . | . . . . Recyclers Shooed . | . . . . Parts Field Recycled . | . . . . Retrieved Matter . | . . . . Parts Self-Destructed 12 | . . 12 . Prevented . | . . . . Kills | -11 -10 -10 -7 ------- Run | Yrd Mat Sub Scr Combat Hostiles Destroyed 9 | . 8 . 1 Guns 9 | . 8 . 1 Classes Destroyed 5 | . 4 . 1 Worker 1 | . 1 . . Builder 1 | . 1 . . Swarmer 6 | . 6 . . Grunt 2 | . 2 . . Ranger 1 | . . . 1 Best Kill Streak 3 | . 3 . 1 Combat Bots Only 3 | . 3 . 1 Max Kills in Single Turn 1 | . 1 . 1 Gunslinging . | . . . . Exploded . | . . . . Melee . | . . . . Uniques/NPCs Destroyed . | . . . . Combat | -11 -10 -10 -7 -------- Run | Yrd Mat Sub Scr Hostile Shots Fired 91 | . 50 23 18 Missed 16 | . 11 4 1 Hits 75 | . 39 19 17 Projectile 75 | . 39 19 17 Critical Strikes 2 | . . 1 1 Damage Taken 1034 | . 342 354 338 Core 268 | . 69 86 113 Absorbed by Shields 94 | . 21 73 . Core Remaining (%) 100 | 100 . . . Volleys Fired 29 | . 22 5 2 Largest 2 | . 2 2 2 Hottest 53 | . 43 46 53 Shots Fired 57 | . 44 10 3 Gun 57 | . 44 10 3 Cannon . | . . . . Launcher . | . . . . Special . | . . . . Kinetic 57 | . 44 10 3 Thermal . | . . . . Explosive . | . . . . Electromagnetic . | . . . . Robot Hit Streak 7 | . 4 4 7 Robot Miss Streak 5 | . 5 1 . Penetration Max . | . . . . Secondary Targets 1 | . 1 . . Max Gunslinging Chain 1 | . 1 . . Shots Hit Robots 36 | . 23 10 3 Core Hits 17 | . 13 2 2 Critical Kills . | . . . . Critical Parts Destroyed . | . . . . Critical Strikes . | . . . . Melee Attacks . | . . . . Impact . | . . . . Slashing . | . . . . Piercing . | . . . . Sneak Attacks . | . . . . Combat Hostiles . | . . . . Follow-up Attacks . | . . . . Damage Inflicted 544 | . 304 182 58 Guns 544 | . 304 182 58 Cannons . | . . . . Explosions . | . . . . Melee . | . . . . Ramming . | . . . . Kinetic 544 | . 304 182 58 Thermal . | . . . . Explosive . | . . . . Electromagnetic . | . . . . Impact . | . . . . Slashing . | . . . . Piercing . | . . . . Highest Corruption . | . . . . Average Corruption . | . . . . Corruption Purged . | . . . . Corruption Blocked . | . . . . Overload Shots . | . . . . Overflow Damage . | . . . . Projectiles . | . . . . Explosions . | . . . . Melee . | . . . . Knockbacks . | . . . . Impact . | . . . . Kinetic . | . . . . Secondary . | . . . . Self-Inflicted Damage . | . . . . Shots . | . . . . Rammed . | . . . . Targets Rammed . | . . . . Kicked . | . . . . Crushed . | . . . . Highest Temperature 88 | . . . 88 Average Temperature 46 | . . . 46 Received Heat Transfer 276 | . 28 43 205 Siege Activations . | . . . . Martial Activations . | . . . . Shielding Activations . | . . . . Robots Disrupted . | . . . . Combat Hostiles . | . . . . Robots Corrupted . | . . . . Combat Hostiles . | . . . . Parts Fried . | . . . . Impact Corruptions . | . . . . Robots Melted . | . . . . Combat Hostiles . | . . . . Parts Melted . | . . . . Heat Transferred . | . . . . Parts Sabotaged . | . . . . Parts Stolen . | . . . . Parts Stripped . | . . . . Power Chain Reactions . | . . . . Alert | -11 -10 -10 -7 ------- Run | Yrd Mat Sub Scr Maximum Alert Level . | . . . . Low Security (%) 100 | 100 100 . . Level 1 . | . . . . Level 2 . | . . . . Level 3 . | . . . . Level 4 . | . . . . Level 5 . | . . . . High Security . | . . . . Max Security . | . . . . Peak Influence 90 | . 90 . . Initial . | . . . . Average 43 | . 48 . . Influence Increases 280 | . 280 . . Destroy 0b10 Robot/C 160 | . 160 . . Destroy 0b10 Robot/NC 10 | . 10 . . Destroy Leader 30 | . 30 . . Successful Hack 5 | . 5 . . Disable Machine 30 | . 30 . . Lose Combat Pursuer 45 | . 45 . . Influence Decreases 280 | . 232 48 . Entered New Map 24 | . . 24 . Time Decay 252 | . 232 20 . Lost Part 4 | . . 4 . Squads Dispatched 3 | . 3 . . Investigation 2 | . 2 . . Extermination . | . . . . Reinforcement 1 | . 1 . . Assault . | . . . . Garrison . | . . . . Intercept . | . . . . Searches Triggered . | . . . . Construction Impeded . | . . . . Haulers Reinforced . | . . . . Active Scanning Responses . | . . . . Cargo Convoy Interrupts . | . . . . Stealth | -11 -10 -10 -7 --------- Run | Yrd Mat Sub Scr Distress Signals . | . . . . Communications Jammed . | . . . . Distress Signals . | . . . . Times Spotted 27 | . 12 7 8 Peak Tracking Total 6 | . 3 6 3 Tactical Retreats 2 | . 2 . . Traps | -11 -10 -10 -7 ------- Run | Yrd Mat Sub Scr Traps Triggered 2 | . 2 . . Indirectly . | . . . . Trap Hack Attempts . | . . . . Triggered . | . . . . Disarmed . | . . . . Reprogrammed . | . . . . Reused . | . . . . Traps Extracted . | . . . . Installed . | . . . . Triggered . | . . . . Machines | -11 -10 -10 -7 ---------- Run | Yrd Mat Sub Scr Machines Disabled 2 | . 2 . . Max in Single Turn 1 | . 1 . . Machines Repaired . | . . . . Machines Dismantled 2 | . 2 . . Machines Sabotaged . | . . . . Overloaded Fab Kills . | . . . . Hacking | -11 -10 -10 -7 --------- Run | Yrd Mat Sub Scr Machines Accessed 6 | . 3 . 3 Terminals 3 | . 3 . . Fabricators . | . . . . Repair Stations . | . . . . Recycling Units . | . . . . Scanalyzers . | . . . . Garrison Access . | . . . . Total Hacks 35 | . 10 . 25 Successful 28 | . 3 . 25 Failed 7 | . 7 . . Catastrophic . | . . . . Database Lockouts . | . . . . Manual . | . . . . Terminals 10 | . 10 . . Fabricators . | . . . . Repair Stations . | . . . . Recycling Units . | . . . . Scanalyzers . | . . . . Garrison Access . | . . . . Terminal Hacks 28 | . 3 . 25 Record 25 | . . . 25 Prototype ID Bank 1 | . 1 . . Locate Traps 1 | . 1 . . Hauler Manifests 1 | . 1 . . Fabricator Hacks . | . . . . Repair Station Hacks . | . . . . Recycling Unit Hacks . | . . . . Scanalyzer . | . . . . Garrison Access Hacks . | . . . . Unauthorized Hacks . | . . . . Terminals . | . . . . Fabricators . | . . . . Repair Stations . | . . . . Recycling Units . | . . . . Scanalyzers . | . . . . Garrison Access . | . . . . Data Cores Recovered . | . . . . Used . | . . . . Hacking Detections 3 | . 3 . . Full Trace Events 1 | . 1 . . Feedback Events . | . . . . Feedback Blocked . | . . . . Robot Schematics Acquired . | . . . . Robots Built . | . . . . Authchips . | . . . . Time . | . . . . Total Robot Build Rating . | . . . . Part Schematics Acquired . | . . . . Parts Built . | . . . . Authchips . | . . . . Time . | . . . . Total Part Build Rating . | . . . . Parts Repaired . | . . . . Time . | . . . . Parts Recycled . | . . . . Recycled Matter . | . . . . Retrieved Matter . | . . . . Retrieved Components . | . . . . Parts Scanalyzed . | . . . . Part Schematics Acquired . | . . . . Parts Damaged . | . . . . Bothacking | -11 -10 -10 -7 ------------ Run | Yrd Mat Sub Scr Used RIF Installer . | . . . . Robots Hacked . | . . . . Non-combat . | . . . . Combat . | . . . . Robot Hacks Applied . | . . . . Relay Couplers Released . | . . . . Fabnet Peak Effective % . | . . . . Robots Rewired . | . . . . Allies Hacked . | . . . . Hacks Repelled . | . . . . Allies | -11 -10 -10 -7 -------- Run | Yrd Mat Sub Scr Total Allies . | . . . . Largest Group . | . . . . Highest-Rated Group . | . . . . Highest-Rated Ally . | . . . . Total Orders . | . . . . Ally Attacks . | . . . . Total Damage . | . . . . Kills . | . . . . Allies Corrupted . | . . . . Allies Melted . | . . . . Intel | -11 -10 -10 -7 ------- Run | Yrd Mat Sub Scr Active Infowar (turns) 92 | . . . 92 Optics 92 | . . . 92 Terrain 17 | . . . 17 Robot Analysis Total . | . . . . Derelict Logs Recovered . | . . . . Drone Launches . | . . . . Drone Recoveries . | . . . . Exploration | -11 -10 -10 -7 ------------- Run | Yrd Mat Sub Scr Turns Passed 1531 | 67 579 316 569 Spaces Moved 1179 | 44 301 274 560 Core 1 | 1 . . . Treads . | . . . . Legs 174 | 43 131 . . Wheels 1004 | . 170 274 560 Hover . | . . . . Flight . | . . . . Fastest Speed 50 | 50 100 90 100 Average Speed 102 | 118 108 99 100 Slowest Speed 120 | 120 120 100 100 Overloaded Moves . | . . . . Propulsion Burnouts . | . . . . Robots Hopped . | . . . . Potential Cave-ins . | . . . . Cave-ins Triggered . | . . . . Exploration Rate (%) 30 | 3 46 22 49 Regions Visited 3 Branch Regions 2 Pre-discovered Areas . | . . . . Known Exits Taken . | . . . . Unknown Exits Taken 3 | 1 1 1 . Scrap Searched 3 | . . 3 . Spaces Dug . | . . . . Terrain Destroyed . | . . . . Melee . | . . . . Projectile . | . . . . AOE . | . . . . Terrain Rammed . | . . . . Walls Destroyed . | . . . . Machines Disabled . | . . . . Actions | -11 -10 -10 -7 --------- Run | Yrd Mat Sub Scr Total 1395 | 57 464 308 566 Wait 101 | . 87 14 . Move 1176 | 43 300 273 560 Hop . | . . . . Pick Up 26 | 8 12 5 1 Fast Attach 5 | 4 1 . . Attach 14 | 2 3 6 3 Detach . | . . . . Swap 4 | . 4 . . Drop 16 | . 11 5 . Fire 29 | . 22 5 2 Melee . | . . . . Ram . | . . . . Kick . | . . . . Crush . | . . . . Escape Stasis . | . . . . Rewire . | . . . . Trap . | . . . . Miscellaneous 24 | . 24 . . Route ------- -11/Scrapyard -10/Materials (discovered 2 exits: [*Mat] / [*Sub]) -10/Subcaves -7/Scraptown (discovered 2 exits: Fac x2) History --------- Turn | Location | Event 12 | -11/Scrapyard | Discovered new exit (range 15) 68 | -11/Scrapyard | Entered Materials 300 | -10/Materials | Build established: Mutant 382 | -10/Materials | Discovered new exit (range 8) 641 | -10/Materials | Discovered new exit (range 6) 647 | -10/Materials | Entered Subcaves 648 | -10/Subcaves | Approached by a straggling Scientist 692 | -10/Subcaves | Ambushed by swarm of Subdwellers 705 | -10/Subcaves | Core integrity fell below 50% 749 | -10/Subcaves | Lost 4 parts (1p2n1w) 943 | -10/Subcaves | Scientist uncovered a shortcut to Scraptown 963 | -10/Subcaves | Entered Scraptown 1009 | -7/Scraptown | Build established: Subdweller-Mutant 1078 | -7/Scraptown | Visited Bundlers 1110 | -7/Scraptown | Visited Spacefarers 1165 | -7/Scraptown | Visited UFD Registry 1165 | -7/Scraptown | Registered with UFD as "Cryonuts" 1204 | -7/Scraptown | Visited Modified Component R&D 1300 | -7/Scraptown | Met Optimus 1300 | -7/Scraptown | Accepted into 0bPrime 1375 | -7/Scraptown | Visited Supply Room 1395 | -7/Scraptown | Visited Infowarlord's Domain 1434 | -7/Scraptown | Delivered Scrap Shield to a Scientist 1457 | -7/Scraptown | Civil war broke out across Scraptown 1499 | -7/Scraptown | Found Exp. Terrain Scanner 1531 | -7/Scraptown | Core integrity fell below 20% 1531 | -7/Scraptown | Identified exit to Factory 1532 | -7/Scraptown | Destroyed by DZ-W6X(j) with Overtuned Pulse Rifle Last Messages --------------- 01519_ ZC-Q5Q(p) destroyed. 01520_ Bolt penetrates Optimus. 01523_ Slug penetrates Machine. 01523_ Slug penetrates TM-OR5(j). 01524_ TM-OR5(j) destroyed. 01524_ Shotgun destroyed. 01525_ Slug penetrates FI-CZH(h). 01525_ Bolt penetrates Optimus. 01525_ FI-CZH(h) destroyed. 01529_ Critical hit (Burn: +50). 01531_ 7T-5CA(j) heat spikes uncontrollably. 01531_ DZ-W6X(j) heat spikes uncontrollably. 01531_ DZ-W6X(j) overheating. 01531_ 7T-5CA(j) destroyed. 01531_ Slug penetrates R3-U8T(j). Optimus: You really should get out of here Cryonuts. Scraptown is unimportant, the mission is important. Take the northeast exit, it's probably the safer route. Loading 2 Scraptown exits... Map ----- +----------------------------------------------------+ | ?????????????????????????????????????????????????? | | ????????????????????? ???#??????????????????????? | | ????????????????????? ???????????????#??????????? | | ????????????##?????#? ??????????????????????????? | | ????????????? ?? #? #?????????????????#??#????? | | ????????????? """ #? # !???????????????????????? | | ?#####??????? """ #? # ???????????????????????? | | ?# [!#?!?# ?"" ?# # ???????????????????????? | | ?# ![#!??# """ "?# # ???????????????????????? | | # # ??# "##!%# ?""????????????????????? | | ? ????? ## # = ?????????????????????? | | ?? ????????"""""??# # ??????????????????????? | | ??# #?????????# #???#==#; #??????????????????????? | | ### ########### #####%j#; ##???????##????????????? | | """ """"""""""" " " "![ %="#?????????????????????? | | = "#?????????????????????? | | [!* #??? ?????????????????? | | =%=!= #?? "??????????????? | | !*[ ## ""?????????????? | | ! "?????????#???? | | """""""""""""""""""""[![ ## ""?????????????? | | """""""""""""""""""""!%! "#??? """??????????????? | | # ################""=! #?????????????????????? | | ##????????#""[%! "#########?????????????? | | X"#????????#"" ! "## ""[[#?#?????????#?? | | " "" ##????????#"" =%=@"## ""[[#?????????????? | | "" X"#??????###"" ! "## !!"##????????????? | | "= ######### #" "## !""#????????#????? | | "" *%! % !""#??????????#??? | | "" = j E!* "## #?????????????? | | " "######## #""%[ "## " "#?????????????? | | "" ""#??????###" E= "## " ""#?????????????? | | " "" ##????????#"" "#########?????????????? | | X"#????????#" "###########???????????? | | ##????????# 3 "## #???????????? | | # ######?????##### / "## #???????????? | | """""??????"""""""" ==%! "## ##??????????? | | """"""""""""""""""" =%* #???????????? | | !!! "## #???????????? | | "###########???????????? | | != = #?????????????????????? | | %!= !=! ##????????????????????? | | [% [%[[ #????????????????????? | | """"" """"""""""" """"""%* ##??????#?????????????? | | ##### #?#?####### ######[= #???????????????????#?? | | ????? ????????? ?????# #?????????????????????? | | ?????????????" ??????# #?????????????????????? | | ????????????# " ???????# #?????????????????????? | | ????????????#?"????????# #?????????????????????? | | ???????????????????????# #?????????????????????? | +----------------------------------------------------+ Best States ------------- Heat Dissipation 25 Energy Generation 15 Energy Capacity 250 Matter Stores 300 Matter Capacity 300 Sight Range 21 Terrain Scan Range 30 Terrain Scan Density 10 Armor Coverage 800 Evasion (%) 55 Item Schematics ----------------- None Robot Schematics ------------------ None Fabricated ------------ Nothing Repaired ---------- Nothing Alien Tech Used ----------------- None Achievements -------------- None Challenges ------------ None Game ------ Seed ReflectivePrecisionScanner Manual? 0 Play Time 00:41:20 Cumulative 18.2 hours Start 2025.07.14 @ 05:54:23 End 2025.07.14 @ 07:06:07 Sessions 1 Manual Loads 0 Difficulty Rogue Special Mode None Game No. 14 Rogue 14 Adventurer 0 Explorer 0 Win Type - Total 0 Types 0/0/0/0/0/0/0/0/0/0 Lore% 11 Gallery% 17 Achievement% 16 Wizard Run 0 Options --------- Layout 1 ASCII 0 Keyboard 0 Movement Mouse Keybinds 0 Fullscreen 1 Font 24/Smallcaps Map View 50x35 Zoom Use 0% Tactical HUD 1 Map Filters NONE Filters NONE Steam 1 RUN: 5ca4b150-f2a8-4c73-82df-5ccff771cc24